bitfinex/quotes_SOLUSD_20220118
["timestamp","ask_amount","ask_price","bid_price","bid_amount"]
[1642540671852,0.25,139.75,139.65,10.39]
[1642540672052,36.9470888,139.73,139.65,10.39]
[1642540672254,36.9470888,139.73,139.65,13.253]
[1642540672453,36.9470888,139.73,139.65,23.9931]
[1642540673256,36.9470888,139.73,139.66,0.25]
[1642540673453,36.9470888,139.73,139.67,13.253]
[1642540673655,36.9470888,139.73,139.67,23.9921]
[1642540675558,2.863,139.72,139.67,13.253]
[1642540675960,2.863,139.72,139.61,129.85]
[1642540676159,2.863,139.72,139.62,10.39]
[1642540676365,3.18896313,139.72,139.62,10.39]
[1642540676567,13.93106313,139.72,139.62,21.133]
[1642540676768,0.25,139.71,139.62,21.133]
[1642540676972,30.00676774,139.69,139.62,21.133]
[1642540677669,30.00676774,139.69,139.62,10.39]
[1642540677869,3.114,139.68,139.62,10.39]
[1642540678271,2.864,139.68,139.62,10.39]
[1642540678468,30.00676774,139.69,139.62,10.39]
[1642540678671,2.864,139.68,139.62,10.39]
[1642540678869,30.00676774,139.69,139.62,10.39]
[1642540679070,2.864,139.68,139.62,10.39]
[1642540680287,30.00676774,139.69,139.62,10.39]
[1642540680470,30.00676774,139.69,139.62,21.133]
[1642540681471,0.48422679,139.67,139.62,21.133]
[1642540682471,0.48422679,139.67,139.64,10.7405]
[1642540682671,0.48422679,139.67,139.65,1.07635395]
[1642540682872,0.48422679,139.67,139.65,4.69035394]
[1642540683272,0.48422679,139.67,139.6,38.67]
[1642540683474,0.48422679,139.67,139.6,13.254]
[1642540683671,2.864,139.66,139.6,21.1347]
[1642540684098,3.34822679,139.67,139.61,2.864]
[1642540684295,3.34822679,139.67,139.62,10.39]
[1642540684496,3.34822679,139.67,139.63,2.864]
[1642540684796,3.34822679,139.67,139.64,10.39]
[1642540684996,36.41791311,139.91,139.64,10.39]
[1642540685197,36.41791311,139.91,139.65,3.114]
[1642540685198,10.7397,139.74,139.65,3.114]
[1642540685396,10.7397,139.74,139.66,10.39]
[1642540685596,35.7957,139.78,139.66,10.39]
[1642540685796,2.862,139.77,139.67,0.25]
[1642540686003,35.15244356,139.77,139.68,10.39]
[1642540686199,35.15244356,139.77,139.69,0.25]
[1642540686398,35.15244356,139.77,139.7,10.39]
[1642540686600,35.15244356,139.77,139.7,21.1268]
[1642540686999,35.15244356,139.77,139.7,10.39]
[1642540687198,3.112,139.76,139.7,10.39]
[1642540687999,2.862,139.76,139.7,10.39]
[1642540688198,13.1001,139.76,139.7,10.39]
[1642540688398,19.86958145,139.77,139.7,10.39]
[1642540689700,10.7381,139.76,139.71,7.29702164]
[1642540690598,10.7381,139.76,139.67,2.862]
[1642540690798,10.7414,139.73,139.67,2.862]
[1642540691207,6.0,139.75,139.67,2.862]
[1642540691404,19.86958145,139.77,139.67,2.862]
[1642540691604,35.92286602,139.74,139.67,2.862]
[1642540692110,35.92286602,139.74,139.67,13.6014]
[1642540693015,35.92286602,139.74,139.67,57.26230663]
[1642540693210,35.92286602,139.74,139.67,67.65230663]
[1642540693712,35.92286602,139.74,139.68,0.25]
[1642540693911,35.92286602,139.74,139.68,10.9875]
[1642540694112,35.92286602,139.74,139.68,21.95384368]
[1642540694914,35.92286602,139.74,139.7,10.7359]
[1642540695113,35.92286602,139.74,139.71,2.862]
[1642540695318,35.92286602,139.74,139.7,13.5979]
[1642540695612,35.92286602,139.74,139.7,24.56424368]
[1642540696216,23.5368,139.79,139.7,24.56424368]
[1642540696416,23.5368,139.79,139.71,10.39]
[1642540696618,23.5368,139.79,139.72,10.735]
[1642540696818,23.5368,139.79,139.72,13.597]
[1642540697218,31.49069893,139.78,139.72,19.298]
[1642540697418,31.49069893,139.78,139.73,10.39]
[1642540697624,13.5961,139.81,139.73,10.39]
[1642540697820,114.5956,139.84,139.74,13.5946]
[1642540698023,9.161,139.83,139.74,13.5946]
[1642540698622,34.29241848,139.82,139.74,13.5946]
[1642540698825,2.861,139.81,139.74,10.7336]
[1642540699023,6.0,139.81,139.74,10.7336]
[1642540699824,16.7336,139.81,139.73,21.1247]
[1642540700023,2.861,139.8,139.73,21.1247]
[1642540700626,2.861,139.8,139.73,47.6369961]
[1642540700926,2.861,139.8,139.73,21.1247]
[1642540701330,6.0,139.81,139.73,21.1247]
[1642540701530,16.7334,139.81,139.73,21.1247]
[1642540701828,32.85361102,139.8,139.73,21.1247]
[1642540702026,35.46461102,139.8,139.73,21.1247]
[1642540703248,32.60361102,139.8,139.73,21.1247]
[1642540704249,2.861,139.79,139.71,10.7356]
[1642540704548,8.861,139.79,139.7,10.39]
[1642540705349,2.861,139.79,139.71,26.83959313]
[1642540705548,2.862,139.82,139.72,10.39]
[1642540705750,49.158,139.83,139.72,86.482]
[1642540705949,0.3,139.83,139.72,93.166]
[1642540706150,0.3,139.83,139.73,1.64062504]
[1642540706352,0.3,139.83,139.74,43.87935652]
[1642540706555,0.3,139.83,139.76,10.7278]
[1642540706750,0.3,139.83,139.77,41.85429085]
[1642540707349,0.3,139.83,139.77,13.251]
[1642540707550,0.3,139.83,139.77,10.39]
[1642540707749,11.0321,139.83,139.77,21.1216]
[1642540707949,0.3,139.83,139.77,21.1216]
[1642540708149,0.3,139.83,139.77,22.76222504]
[1642540708351,0.3,139.83,139.78,40.12419842]
[1642540708650,36.35161003,139.85,139.78,50.51419842]
[1642540709650,36.35161003,139.85,139.79,10.7286]
[1642540709849,23.6277,139.87,139.8,2.86]
[1642540710049,47.1158,139.89,139.79,2.86]
[1642540710249,2.86,139.88,139.78,10.39]
[1642540710456,10.7317,139.85,139.78,10.39]
[1642540710655,2.86,139.84,139.78,10.39]
[1642540710857,2.86,139.86,139.78,10.39]
[1642540711256,37.21454632,139.85,139.78,10.39]
[1642540711461,2.86,139.84,139.77,10.7309]
[1642540711660,8.86,139.84,139.77,10.7309]
[1642540711857,2.86,139.84,139.77,10.7309]
[1642540712057,0.35903079,139.94,139.81,10.7277]
[1642540712058,2.861,139.88,139.81,10.7277]
[1642540712259,2.861,139.9,139.81,10.7277]
[1642540712560,2.86,139.93,139.81,10.7277]
[1642540712762,32.20967213,139.92,139.82,2.86]
[1642540712961,2.859,139.9,139.81,10.7277]
[1642540713163,34.73984523,139.89,139.81,10.7277]
[1642540713362,10.7285,139.88,139.81,10.7277]
[1642540714163,10.7285,139.88,139.8,13.25]
[1642540714361,13.5885,139.88,139.8,10.39]
[1642540715160,28.3861729,139.86,139.8,10.39]
[1642540715563,28.3861729,139.86,139.8,21.1192]
[1642540717564,39.1161729,139.86,139.8,21.1192]
[1642540717966,39.1161729,139.86,139.8,10.39]
[1642540718464,39.1161729,139.86,139.78,13.5902]
[1642540718666,41.9761729,139.86,139.78,10.7302]
[1642540719564,39.1161729,139.86,139.79,2.86]
[1642540719763,39.1161729,139.86,139.79,13.5901]
[1642540719962,39.1161729,139.86,139.79,10.7301]
[1642540721568,39.1161729,139.86,139.77,13.5909]
[1642540721766,39.1161729,139.86,139.74,1.63684375]
[1642540721767,0.25,139.85,139.76,2.86]
[1642540721973,10.7345,139.82,139.75,2.861]
[1642540722168,10.7345,139.82,139.73,13.251]
[1642540722567,27.23059133,139.81,139.73,53.27946417]
[1642540722767,27.23059133,139.81,139.73,50.41846417]
[1642540723367,27.23059133,139.81,139.73,21.1247]
[1642540723567,10.7345,139.8,139.73,21.1247]
[1642540724470,10.7345,139.8,139.73,54.34465078]
[1642540724869,10.7345,139.8,139.74,2.861]
[1642540725067,27.23059133,139.81,139.74,24.2349]
[1642540725469,23.478,139.83,139.75,1.63684375]
[1642540725670,23.478,139.83,139.76,13.501]
[1642540726569,36.26820485,139.82,139.76,60.17484772]
[1642540727671,24.3315,139.85,139.76,60.17484772]
[1642540728074,6.0,139.84,139.76,60.17484772]
[1642540728673,33.88918733,139.83,139.76,60.17484772]
[1642540729296,33.88918733,139.83,139.76,57.31384772]
[1642540731699,33.88918733,139.83,139.77,2.861]
[1642540731898,33.88918733,139.83,139.78,21.1203]
[1642540732301,6.0,139.84,139.78,21.1203]
[1642540733802,6.0,139.84,139.78,10.39]
[1642540734205,34.06927969,139.83,139.78,10.39]
[1642540734904,6.0,139.82,139.78,10.39]
[1642540735604,6.0,139.82,139.74,13.251]
[1642540735803,6.0,139.82,139.74,10.39]
[1642540736004,8.861,139.82,139.74,23.9843]
[1642540737013,6.0,139.82,139.74,23.9843]
[1642540738410,44.80147969,139.83,139.74,23.9843]
[1642540738610,34.06927969,139.83,139.75,0.25]
[1642540738811,34.06927969,139.83,139.77,10.7304]
[1642540739010,34.06927969,139.83,139.78,2.861]
[1642540739214,34.06927969,139.83,139.78,0.25]
[1642540739813,34.06927969,139.83,139.77,10.39]
[1642540741416,34.06927969,139.83,139.77,21.1209]
[1642540742516,34.06927969,139.83,139.78,0.25]
[1642540742918,34.06927969,139.83,139.79,10.7282]
[1642540744827,24.0226,139.87,139.79,10.7282]
[1642540745028,24.0226,139.87,139.79,21.1182]
[1642540746223,2.86,139.86,139.79,21.1182]
[1642540746423,33.83170385,139.85,139.79,21.1182]
[1642540748325,24.0226,139.87,139.79,52.88784556]
[1642540748626,23.129,139.88,139.79,52.88784556]
[1642540748627,23.129,139.88,139.82,10.7265]
[1642540749026,23.129,139.88,139.83,0.25]
[1642540749224,23.129,139.88,139.83,3.11]
[1642540749424,30.90397552,139.87,139.83,3.11]
[1642540750225,30.90397552,139.87,139.83,2.86]
[1642540750424,30.90397552,139.87,139.84,10.7262]
[1642540750828,30.90397552,139.87,139.85,0.25]
[1642540751026,0.03791311,139.91,139.85,13.5]
[1642540751425,0.03791311,139.91,139.86,10.7243]
[1642540751626,0.03791311,139.91,139.86,10.9743]
[1642540752428,0.03791311,139.91,139.86,21.3643]
[1642540752629,0.03791311,139.91,139.87,2.859]
[1642540752826,0.03791311,139.91,139.88,21.112]
[1642540753627,0.03791311,139.91,139.89,0.25]
[1642540753830,0.35903079,139.94,139.9,13.5771]
[1642540754035,0.35903079,139.94,139.9,23.9671]
[1642540754628,0.35903079,139.94,139.9,13.249]
[1642540754828,0.35903079,139.94,139.9,10.39]
[1642540755257,0.35903079,139.94,139.87,10.39]
[1642540755531,26.13385087,139.92,139.85,10.39]
[1642540755730,3.109,139.91,139.85,10.39]
[1642540755930,0.25,139.91,139.85,10.39]
[1642540757129,28.99285087,139.92,139.85,10.39]
[1642540757533,28.99285087,139.92,139.86,30.23216425]
[1642540757738,26.13385087,139.92,139.85,10.39]
[1642540760533,26.13385087,139.92,139.86,35.52009723]
[1642540760831,26.13385087,139.92,139.86,35.77009723]
[1642540761832,23.71453079,139.94,139.88,10.721]
[1642540762032,0.35903079,139.94,139.89,2.858]
[1642540762231,0.35903079,139.94,139.9,0.25]
[1642540762434,0.35903079,139.94,139.9,1.88684375]
[1642540762844,0.35903079,139.94,139.9,0.25]
[1642540763034,0.35903079,139.94,139.9,26.90689141]
[1642540763235,0.35903079,139.94,139.9,0.25]
[1642540763436,0.35903079,139.94,139.9,10.9689]
[1642540763835,0.35903079,139.94,139.9,21.3589]
[1642540764235,0.35903079,139.94,139.91,30.78124151]
[1642540764535,0.35903079,139.94,139.91,41.49934151]
[1642540765138,0.35903079,139.94,139.91,13.5761]
[1642540765537,0.35903079,139.94,139.91,10.7181]
[1642540766342,36.92068766,139.93,139.9,10.64]
[1642540766541,33.8884877,139.93,139.9,13.498]
[1642540766742,33.8884877,139.93,139.9,10.64]
[1642540767344,0.35903079,139.94,139.9,10.64]
[1642540768042,0.35903079,139.94,139.9,10.39]
[1642540772870,0.35903079,139.94,139.91,0.25]
[1642540773075,6.06439993,139.93,139.91,0.25]
[1642540773876,6.06439993,139.93,139.9,0.25]
[1642540774273,6.06439993,139.93,139.85,2.858]
[1642540774474,6.06439993,139.93,139.86,10.39]
[1642540774675,6.06439993,139.93,139.86,10.64]
[1642540775274,36.05349736,139.92,139.86,36.92412009]
[1642540775575,36.05349736,139.92,139.87,2.859]
[1642540775774,36.05349736,139.92,139.88,0.25]
[1642540778180,36.05349736,139.92,139.87,38.08646246]
[1642540778983,36.05349736,139.92,139.87,2.859]
[1642540781286,36.05349736,139.92,139.86,21.1136]
[1642540781519,36.05349736,139.92,139.86,10.39]
[1642540783086,0.35903079,139.94,139.86,10.39]
[1642540783289,0.35903079,139.94,139.87,0.25]
[1642540783486,0.35903079,139.94,139.87,13.8317]
[1642540783687,0.35903079,139.94,139.87,13.5817]
[1642540784086,37.00111709,139.94,139.87,13.5817]
[1642540784287,37.00111709,139.94,139.88,29.64132967]
[1642540785288,47.72471709,139.94,139.87,2.859]
[1642540785491,47.72471709,139.94,139.88,0.25]
[1642540785690,47.72471709,139.94,139.87,2.859]
[1642540787091,47.72471709,139.94,139.86,10.39]
[1642540787792,50.58371709,139.94,139.86,10.39]
[1642540788896,50.58371709,139.94,139.87,29.22909296]
[1642540789095,47.72471709,139.94,139.87,29.22909296]
[1642540789895,37.00111709,139.94,139.88,1.628868]
[1642540790095,37.00111709,139.94,139.89,2.858]
[1642540790297,37.00111709,139.94,139.87,32.08709296]
[1642540790496,37.00111709,139.94,139.87,42.47709296]
[1642540790797,0.35903079,139.94,139.87,41.24796096]
[1642540790997,0.35903079,139.94,139.88,3.109]
[1642540791198,0.35903079,139.94,139.89,10.7214]
[1642540791799,0.35903079,139.94,139.9,30.47659082]
[1642540792499,0.35903079,139.94,139.88,15.127868]
[1642540792700,0.35903079,139.94,139.88,13.499]
[1642540793202,0.35903079,139.94,139.88,10.64]
[1642540793401,0.35903079,139.94,139.89,32.48517558]
[1642540793601,0.35903079,139.94,139.89,35.34317558]
[1642540794803,0.35903079,139.94,139.89,55.80874358]
[1642540795001,0.35903079,139.94,139.9,0.25]
[1642540795308,0.35903079,139.94,139.91,2.858]
[1642540795700,0.35903079,139.94,139.92,28.42613951]
[1642540797123,0.35903079,139.94,139.92,39.14583951]
[1642540798026,24.32962014,139.99,139.92,39.14583951]
[1642540798226,24.32962014,139.99,139.92,40.77470751]
[1642540798426,24.32962014,139.99,139.93,10.39]
[1642540798633,24.32962014,139.99,139.94,13.5748]
[1642540799027,24.32962014,139.99,139.95,30.38452468]
[1642540799227,24.32962014,139.99,139.95,30.63452468]
[1642540800527,24.32962014,139.99,139.95,51.74172468]
[1642540800726,0.02902014,139.99,139.96,2.857]
[1642540801527,0.02902014,139.99,139.96,13.5737]
[1642540801928,0.02902014,139.99,139.96,10.7167]
[1642540803730,0.02902014,139.99,139.98,10.715]
[1642540804330,0.02902014,139.99,139.95,45.50287478]
[1642540804331,0.02902014,139.99,139.95,43.88152468]
[1642540804531,0.02902014,139.99,139.95,13.497]
[1642540804731,0.02902014,139.99,139.95,13.247]
[1642540805031,0.02902014,139.99,139.95,10.39]
[1642540805631,2.857,139.98,139.9,1.8034185]
[1642540805931,83.7042,139.96,139.88,1.8034185]
[1642540806132,2.858,139.95,139.88,1.8034185]
[1642540806332,3.108,139.95,139.88,1.8034185]
[1642540806533,34.42763927,139.94,139.88,1.8034185]
[1642540806731,37.28563927,139.94,139.88,1.8034185]
[1642540806936,10.7251,139.93,139.88,1.8034185]
[1642540807133,10.7251,139.93,139.86,2.858]
[1642540808033,6.0,139.92,139.86,2.858]
[1642540808234,40.62158669,139.91,139.86,2.858]
[1642540808832,29.89518669,139.91,139.86,2.858]
[1642540809334,40.62108669,139.91,139.86,2.858]
[1642540809532,47.12708669,139.91,139.86,2.858]
[1642540809733,47.12708669,139.91,139.83,12.1934185]
[1642540810136,10.729,139.88,139.83,12.1934185]
[1642540810335,36.00877139,139.87,139.83,1.8034185]
[1642540810633,39.11877139,139.87,139.82,1.8034185]
[1642540811639,39.11877139,139.87,139.78,15.0534185]
[1642540812435,10.7318,139.86,139.79,33.15198991]
[1642540812633,10.7318,139.86,139.78,13.25]
[1642540813536,10.7318,139.86,139.78,45.09441087]
[1642540813938,10.7318,139.86,139.78,42.23441087]
[1642540814737,10.7333,139.83,139.78,42.23441087]
[1642540815039,10.7333,139.83,139.78,10.39]
[1642540815236,13.5943,139.83,139.78,10.39]
[1642540815438,0.25,139.82,139.78,10.39]
[1642540816239,10.7344,139.81,139.78,10.39]
[1642540816439,6.06439993,139.8,139.78,10.39]
[1642540817240,6.06439993,139.8,139.74,10.39]
[1642540817439,16.79939993,139.8,139.74,10.39]
[1642540817840,16.79939993,139.8,139.74,47.25091187]
[1642540818639,6.0,139.79,139.74,47.25091187]
[1642540819341,10.735,139.8,139.74,47.25091187]
[1642540819541,46.584607,139.81,139.74,47.25091187]
[1642540821344,10.734,139.81,139.74,47.25091187]
[1642540821543,2.861,139.82,139.75,2.861]
[1642540821744,2.861,139.82,139.75,3.111]
[1642540821955,2.861,139.82,139.75,4.73673992]
[1642540822546,2.861,139.82,139.77,39.06714574]
[1642540822845,2.861,139.82,139.78,13.251]
[1642540823648,2.861,139.82,139.78,23.9817]
[1642540824452,2.861,139.91,139.78,25.60743992]
[1642540824648,10.7292,139.88,139.8,10.7292]
[1642540824847,10.7292,139.88,139.8,13.5892]
[1642540825047,10.7292,139.88,139.8,2.86]
[1642540825246,46.41463187,139.88,139.81,27.32149132]
[1642540826253,2.861,139.91,139.83,72.98]
[1642540826450,2.01860552,139.98,139.86,202.83]
[1642540826650,2.01860552,139.98,139.88,202.83]
[1642540826850,2.01860552,139.98,139.89,10.39]
[1642540827051,98.37480895,140.0,139.9,75.838]
[1642540827247,4.02453786,140.02,139.91,40.20162635]
[1642540827451,4.02453786,140.02,139.92,2.858]
[1642540827749,4.02453786,140.02,139.93,6.25]
[1642540827953,27.7952,140.06,139.94,10.7155]
[1642540827954,24.9372,140.06,139.94,10.7155]
[1642540828150,24.9372,140.06,139.95,10.39]
[1642540828351,24.9372,140.06,139.95,10.64]
[1642540828753,28.90403601,140.05,139.96,36.85478008]
[1642540828953,2.857,140.07,139.97,10.39]
[1642540829152,2.857,140.07,139.98,6.0]
[1642540829352,2.856,140.08,139.99,10.39]
[1642540829556,2.856,140.08,139.99,10.64]
[1642540829753,2.856,140.08,139.99,12.26573992]
[1642540830053,2.856,140.08,140.0,29.40241685]
[1642540830280,2.856,140.08,140.01,10.39]
[1642540830581,2.856,140.08,140.01,21.1029]
[1642540830983,34.24778233,140.07,140.01,21.1029]
[1642540831181,34.24778233,140.07,140.01,10.39]
[1642540831381,2.856,140.06,139.98,10.39]
[1642540831582,10.7187,140.04,139.96,10.39]
[1642540831781,2.857,140.03,139.96,10.39]
[1642540831982,2.857,140.05,139.96,10.39]
[1642540832185,2.857,140.05,139.97,36.54753306]
[1642540832385,2.857,140.05,139.98,10.39]
[1642540832584,24.5193,140.06,139.98,13.246]
[1642540833184,24.5193,140.06,139.99,1.62182489]
[1642540833385,24.5193,140.06,140.0,10.39]
[1642540833583,2.856,140.08,140.0,10.39]
[1642540833982,2.856,140.08,140.01,27.88574747]
[1642540833983,30.66877095,140.07,140.01,27.88574747]
[1642540834186,2.856,140.08,140.01,27.88574747]
[1642540834586,2.856,140.08,140.01,36.25274747]
[1642540835184,33.13597385,140.08,140.01,36.25274747]
[1642540835683,2.856,140.08,140.01,36.25274747]
[1642540836085,13.5709,140.08,140.01,27.88574747]
[1642540836485,13.5709,140.08,140.0,10.39]
[1642540836686,0.25,140.07,140.0,10.39]
[1642540836886,73.00902014,140.36,140.13,0.78125]
[1642540837087,0.02902014,140.36,140.26,129.85]
[1642540837291,0.02902014,140.36,140.28,129.85]
[1642540837486,34.20406126,140.35,140.31,129.85]
[1642540837691,0.02902014,140.36,140.33,129.85]
[1642540837887,0.02902014,140.36,140.33,151.279]
[1642540838090,0.02902014,140.36,140.35,129.85]
[1642540838289,0.35784833,140.4,140.35,140.49]
[1642540838492,0.35784833,140.4,140.37,129.85]
[1642540838792,0.35784833,140.4,140.37,146.375]
[1642540838990,154.7733,140.49,140.39,129.85]
[1642540839190,78.1623,140.49,140.42,129.85]
[1642540839390,78.7577,140.56,140.43,10.39]
[1642540839391,2.848,140.54,140.43,10.39]
[1642540839594,2.848,140.54,140.44,129.85]
[1642540839796,2.848,140.54,140.48,129.85]
[1642540839996,0.5,140.55,140.49,140.24]
[1642540840194,2.347,140.54,140.49,140.24]
[1642540840395,0.5,140.55,140.49,13.236]
[1642540840594,2.346,140.61,140.51,129.85]
[1642540840797,72.7596,140.64,140.52,143.085]
[1642540840798,33.66423471,140.62,140.52,143.085]
[1642540840994,33.66423471,140.62,140.52,140.24]
[1642540841200,2.845,140.61,140.54,129.85]
[1642540841401,2.845,140.61,140.55,10.39]
[1642540841599,2.845,140.61,140.38,2.845]
[1642540841800,4.63405272,140.61,140.46,2.846]
[1642540842101,16.6793,140.6,140.47,10.39]
[1642540842304,2.846,140.59,140.46,10.39]
[1642540842702,39.81440236,140.58,140.46,10.39]
[1642540842901,2.846,140.57,140.47,2.846]
[1642540843102,2.846,140.57,140.46,10.39]
[1642540843302,6.0,140.56,140.47,10.39]
[1642540843503,33.81440236,140.58,140.48,10.39]
[1642540843703,33.81440236,140.58,140.49,32.06216145]
[1642540843903,33.81440236,140.58,140.5,10.39]
[1642540844604,5.59601631,140.58,140.5,10.39]
[1642540844806,5.59601631,140.58,140.5,19.2145]
[1642540845003,2.846,140.64,140.5,19.2145]
[1642540845204,2.845,140.65,140.51,3.095]
[1642540845407,10.669,140.69,140.52,8.54]
[1642540845604,13.514,140.69,140.53,2.844]
[1642540845808,13.514,140.69,140.54,8.54]
[1642540846008,13.514,140.69,140.55,36.37296464]
[1642540846206,2.845,140.69,140.56,8.54]
[1642540846406,0.03192828,140.7,140.57,2.844]
[1642540846609,0.03192828,140.7,140.58,14.54]
[1642540846809,0.03192828,140.7,140.59,3.094]
[1642540847008,0.03192828,140.7,140.6,34.93640643]
[1642540847311,0.03192828,140.7,140.63,10.6644]
[1642540847509,0.03192828,140.7,140.61,3.093]
[1642540847721,0.03192828,140.7,140.63,31.88781027]
[1642540847910,0.03192828,140.7,140.63,2.843]
[1642540848512,0.03192828,140.7,140.63,13.508]
[1642540848712,0.03192828,140.7,140.64,8.29]
[1642540849536,0.03192828,140.7,140.65,36.27973343]
[1642540849837,0.03192828,140.7,140.66,8.54]
[1642540850443,0.03192828,140.7,140.67,0.25]
[1642540850635,0.03192828,140.7,140.68,8.54]
[1642540850836,6.06439993,140.69,140.66,8.54]
[1642540851037,6.06439993,140.69,140.66,5.87503934]
[1642540851239,2.843,140.7,140.6,2.843]
[1642540851436,2.843,140.68,140.6,8.54]
[1642540851639,13.71636084,140.67,140.57,8.54]
[1642540851835,16.56036084,140.67,140.57,8.54]
[1642540852036,24.38526084,140.67,140.58,2.844]
[1642540852638,3.094,140.66,140.55,11.384]
[1642540852936,3.094,140.66,140.53,41.78506669]
[1642540853334,3.094,140.66,140.53,8.54]
[1642540853536,6.0,140.65,140.53,8.54]
[1642540853736,6.0,140.65,140.54,0.25]
[1642540854235,6.0,140.65,140.53,8.54]
[1642540854436,33.54844552,140.64,140.54,2.845]
[1642540854635,6.0,140.63,140.49,8.54]
[1642540854839,14.54,140.63,140.46,2.845]
[1642540855040,0.25,140.62,140.46,2.845]
[1642540855235,8.54,140.61,140.46,2.845]
[1642540855539,19.71636084,140.6,140.46,32.83149367]
[1642540855736,10.6778,140.58,140.46,35.67749367]
[1642540855937,22.62744552,140.57,140.46,32.83149367]
[1642540856135,22.87744552,140.57,140.47,2.846]
[1642540856335,22.62744552,140.57,140.47,2.846]
[1642540856535,0.25,140.56,140.47,2.846]
[1642540856736,0.25,140.56,140.46,32.83149367]
[1642540856936,0.25,140.56,140.47,2.846]
[1642540857137,10.6786,140.54,140.47,2.846]
[1642540857336,58.22354552,140.57,140.47,2.846]
[1642540857337,22.62744552,140.57,140.47,2.846]
[1642540857739,0.25,140.56,140.47,2.846]
[1642540857940,0.25,140.56,140.44,2.846]
[1642540858440,6.25,140.56,140.44,2.846]
[1642540858640,16.9274,140.56,140.44,2.846]
[1642540859042,16.6774,140.56,140.44,30.96661572]
[1642540859441,72.98,140.55,140.44,2.846]
[1642540859947,10.6804,140.52,140.44,13.5256]
[1642540860150,10.6804,140.52,140.44,2.846]
[1642540860548,13.71636084,140.51,140.44,2.846]
[1642540860748,21.12236084,140.51,140.36,2.847]
[1642540860949,21.12236084,140.51,140.25,106.81]
[1642540860950,21.12236084,140.51,140.34,8.54]
[1642540861450,21.12236084,140.51,140.35,28.98592778]
[1642540861647,21.12236084,140.51,140.36,2.848]
[1642540861847,22.62744552,140.48,140.39,33.23561825]
[1642540862049,35.8663,140.5,140.39,33.23561825]
[1642540862349,2.848,140.49,140.39,33.23561825]
[1642540862547,35.8663,140.5,140.4,2.848]
[1642540862949,35.6092,140.52,140.4,13.5305]
[1642540863148,72.98,140.55,140.41,0.25]
[1642540863348,72.98,140.55,140.42,2.847]
[1642540863548,72.98,140.55,140.43,6.0]
[1642540864148,32.38237358,140.54,140.44,29.2473971]
[1642540864554,10.6808,140.52,140.42,2.847]
[1642540865150,72.98,140.51,140.42,2.847]
[1642540865454,3.96143278,140.5,140.42,2.847]
[1642540865654,10.6848,140.49,140.42,2.847]
[1642540867055,10.6848,140.49,140.41,2.847]
[1642540867658,0.25,140.48,140.37,2.847]
[1642540867884,10.6868,140.45,140.36,2.848]
[1642540868088,10.6868,140.45,140.36,10.6857]
[1642540868286,2.848,140.48,140.37,3.098]
[1642540868484,23.9806,140.57,140.37,0.25]
[1642540868485,73.8901,140.52,140.37,0.25]
[1642540869285,101.68290652,140.52,140.37,36.0909203]
[1642540869586,73.8901,140.52,140.38,12.28661341]
[1642540869791,2.848,140.58,140.45,0.30392832]
[1642540869986,2.848,140.58,140.46,11.386]
[1642540870191,2.846,140.64,140.47,0.25]
[1642540870487,26.74379896,140.63,140.49,33.39328399]
[1642540870693,37.41729896,140.63,140.53,10.6726]
[1642540870888,37.41729896,140.63,140.54,34.38328343]